bitfinex/quotes_SOLUSD_20260223
["timestamp","ask_amount","ask_price","bid_price","bid_amount"]
[1771845374334,16.46090936,80.58,80.545,0.48757319]
[1771845374541,0.09835508,80.579,80.545,0.48757319]
[1771845375926,0.09835508,80.579,80.554,0.48757319]
[1771845377243,0.09833437,80.579,80.556,0.48757319]
[1771845377625,3.95242352,80.57,80.556,0.48757319]
[1771845377839,0.09832095,80.569,80.547,0.45261749]
[1771845378048,3.95242352,80.56,80.544,0.45261749]
[1771845378235,0.09832095,80.574,80.545,0.45261749]
[1771845378436,3.95242352,80.57,80.547,0.45261749]
[1771845378623,12.41070727,80.576,80.547,0.45261749]
[1771845379145,0.46623074,80.579,80.549,0.45825117]
[1771845380530,0.46623074,80.577,80.551,0.45825117]
[1771845380731,3.95242352,80.57,80.551,0.45825117]
[1771845382131,0.46623074,80.573,80.551,0.45825117]
[1771845386057,0.46623074,80.569,80.551,0.45825117]
[1771845386550,0.46623074,80.569,80.553,0.45825117]
[1771845388046,0.46623074,80.569,80.555,0.45825117]
[1771845388250,0.46623074,80.574,80.555,0.45825117]
[1771845390346,0.46623074,80.574,80.557,0.45825117]
[1771845391966,4.05242352,80.6,80.542,0.45825117]
[1771845391967,0.46623074,80.569,80.542,0.45825117]
[1771845394565,0.46623074,80.575,80.544,0.45825117]
[1771845394745,0.46623074,80.579,80.544,0.45825117]
[1771845397674,0.46623074,80.569,80.544,0.45825117]
[1771845397852,0.46623074,80.559,80.544,12.8737176]
[1771845398858,0.46623074,80.559,80.545,0.45825117]
[1771845406273,0.46623074,80.559,80.547,0.45825117]
[1771845407574,0.46213609,80.581,80.547,0.45825117]
[1771845407766,6.48951625,80.592,80.573,0.45034321]
[1771845407767,5.98931097,80.592,80.573,0.45034321]
[1771845407955,0.1,80.6,80.573,0.45034321]
[1771845408356,0.1,80.6,80.575,0.45034321]
[1771845409582,0.1,80.6,80.576,12.41064336]
[1771845409880,0.1,80.6,80.577,0.45034321]
[1771845411779,0.46213609,80.599,80.577,0.45034321]
[1771845411981,0.46213609,80.599,80.578,12.41033532]
[1771845412280,0.1,80.6,80.579,0.45034321]
[1771845412498,0.46213609,80.623,80.591,0.45034321]
[1771845412781,0.46213609,80.628,80.601,0.45034321]
[1771845413778,0.46213609,80.628,80.603,0.45034321]
[1771845414372,0.46213609,80.635,80.603,0.45034321]
[1771845414583,0.46213609,80.642,80.611,0.45034321]
[1771845414761,0.46213609,80.639,80.611,0.45034321]
[1771845415065,4.40764795,80.63,80.611,0.45034321]
[1771845415667,0.46213609,80.629,80.603,0.45034321]
[1771845416667,0.46213609,80.629,80.604,12.40633219]
[1771845417284,0.46213609,80.629,80.605,0.45034321]
[1771845418963,0.46213609,80.629,80.606,12.85636757]
[1771845419283,0.46213609,80.629,80.607,0.45034321]
[1771845419984,0.46213609,80.629,80.606,12.40602436]
[1771845420186,0.46213609,80.619,80.602,0.45034321]
[1771845420385,0.46213609,80.619,80.597,0.45034321]
[1771845420692,0.46213609,80.609,80.571,0.45034321]
[1771845420893,3.69383402,80.625,80.571,0.45034321]
[1771845420894,0.46213609,80.599,80.571,0.45034321]
[1771845422093,0.46213609,80.597,80.572,12.41125949]
[1771845422269,0.46213609,80.579,80.559,12.41326232]
[1771845422769,0.46213609,80.579,80.559,12.86360553]
[1771845423682,0.46213609,80.579,80.521,53.36993935]
[1771845423683,0.46213609,80.569,80.541,0.45034321]
[1771845423871,0.46213609,80.559,80.534,12.86745896]
[1771845424189,0.46213609,80.549,80.528,0.45034321]
[1771845425177,0.46213609,80.549,80.528,12.86825491]
[1771845425375,0.46213609,80.539,80.515,0.45034321]
[1771845425591,3.94551186,80.53,80.509,12.42097156]
[1771845425866,0.46213609,80.534,80.509,12.42097156]
[1771845426077,0.46213609,80.534,80.51,0.45034321]
[1771845428691,0.46213609,80.534,80.511,12.42066301]
[1771845428692,3.94551186,80.53,80.511,12.42066301]
[1771845428994,0.46213609,80.534,80.511,12.87100622]
[1771845429895,0.34786927,80.534,80.512,0.45034321]
[1771845430608,3.94551186,80.53,80.512,0.45034321]
[1771845431705,0.34786927,80.534,80.513,12.42035447]
[1771845431992,3.94551186,80.53,80.513,12.42035447]
[1771845432175,4.40764795,80.53,80.513,12.42035447]
[1771845432380,0.46213609,80.529,80.513,12.42035447]
[1771845433588,3.94551186,80.53,80.513,0.45034321]
[1771845435998,3.94551186,80.53,80.514,12.42020021]
[1771845437103,3.94551186,80.53,80.515,0.45034321]
[1771845438116,0.488683,80.558,80.517,0.46678013]
[1771845438298,0.488683,80.549,80.517,0.46678013]
[1771845438482,3.94551186,80.54,80.517,0.46678013]
[1771845438884,4.42987055,80.54,80.517,0.46678013]
[1771845439081,0.48435869,80.539,80.517,0.46678013]
[1771845440606,0.48435869,80.539,80.518,12.41958319]
[1771845441202,3.94551186,80.53,80.518,12.8941999]
[1771845441507,0.48435869,80.529,80.513,12.42025158]
[1771845441698,0.48435869,80.529,80.509,12.42087363]
[1771845442293,12.4163663,80.539,80.509,12.42087363]
[1771845442294,3.94551186,80.52,80.509,12.42087363]
[1771845445210,0.48435869,80.523,80.505,12.42158872]
[1771845445712,0.48435869,80.509,80.493,12.42329519]
[1771845446215,0.48435869,80.509,80.49,0.2]
[1771845446509,12.41896624,80.522,80.479,12.42556928]
[1771845446510,0.48435869,80.499,80.479,12.42556928]
[1771845447097,0.48435869,80.499,80.479,0.47461671]
[1771845450420,0.48435869,80.499,80.48,12.42544731]
[1771845451916,0.48435869,80.499,80.47,0.47461671]
[1771845454211,0.48435869,80.499,80.472,0.47461671]
[1771845454736,3.94551186,80.5,80.472,0.47461671]
[1771845455022,0.48435869,80.539,80.491,0.47461671]
[1771845455195,0.48435869,80.539,80.511,0.47461671]
[1771845455612,3.94551186,80.53,80.511,0.47461671]
[1771845455820,0.48435869,80.529,80.511,0.47461671]
[1771845456215,0.48435869,80.529,80.512,12.42050874]
[1771845456617,0.48435869,80.529,80.513,0.47461671]
[1771845456822,0.48435869,80.535,80.513,0.47461671]
[1771845458022,0.48435869,80.529,80.508,0.47461671]
[1771845459233,0.48435869,80.519,80.501,12.42220593]
[1771845459527,0.48435869,80.519,80.501,12.89682264]
[1771845461421,0.48435869,80.519,80.501,12.42220593]
[1771845462707,0.48435869,80.519,80.496,12.42297753]
[1771845464227,0.48435869,80.519,80.496,0.47461671]
[1771845465928,0.48435869,80.539,80.501,0.47461671]
[1771845466536,0.48435869,80.539,80.503,0.47461671]
[1771845467812,3.94551186,80.53,80.503,0.47461671]
[1771845468818,3.94551186,80.53,80.505,0.46550587]
[1771845469018,3.94551186,80.55,80.51,3.94551186]
[1771845469335,3.94551186,80.55,80.511,0.46550587]
[1771845469922,0.47034834,80.569,80.531,0.46550587]
[1771845470122,0.47034834,80.559,80.531,0.46550587]
[1771845470534,12.41167853,80.57,80.531,0.46550587]
[1771845470535,0.47034834,80.549,80.531,0.46550587]
[1771845470934,0.47034834,80.549,80.532,12.41742412]
[1771845471417,0.47034834,80.555,80.533,0.46550587]
[1771845471818,0.47034834,80.549,80.528,12.41800291]
[1771845475148,0.47034834,80.549,80.524,12.41865779]
[1771845479138,0.47034834,80.547,80.524,12.41865779]
[1771845480140,0.47034834,80.545,80.524,12.41865779]
[1771845480342,0.47034834,80.529,80.506,12.88694029]
[1771845481941,0.47034834,80.529,80.49,3.95370516]
[1771845481942,0.47034834,80.529,80.502,12.42196116]
[1771845482334,0.47034834,80.528,80.498,0.46550587]
[1771845484749,0.47034834,80.526,80.499,12.88802043]
[1771845485151,0.47034834,80.526,80.5,0.46550587]
[1771845487130,0.47034834,80.519,80.493,12.42343174]
[1771845488533,0.47034834,80.519,80.494,0.46550587]
[1771845490957,0.47034834,80.519,80.491,31.05899961]
[1771845490958,0.47034834,80.524,80.496,0.46550587]
[1771845492145,0.47034834,80.524,80.497,12.42282321]
[1771845492457,0.47034834,80.524,80.498,0.46550587]
[1771845494156,0.47034834,80.537,80.501,0.46550587]
[1771845494551,0.47034834,80.529,80.501,0.46550587]
[1771845497076,0.47034834,80.528,80.503,0.46550587]
[1771845499156,0.48208741,80.527,80.504,12.42174301]
[1771845501680,3.95370516,80.52,80.456,49.71637939]
[1771845501859,0.48208741,80.509,80.488,0.5004363]
[1771845503077,0.48208741,80.499,80.483,0.5004363]
[1771845503950,3.69383402,80.546,80.483,0.5004363]
[1771845504156,0.48208741,80.519,80.483,0.5004363]
[1771845505161,0.48208741,80.519,80.491,0.5004363]
[1771845507573,0.48208741,80.518,80.493,0.5004363]
[1771845509463,0.48208741,80.518,80.495,0.5004363]
[1771845512487,3.95370516,80.52,80.497,0.5004363]
[1771845512787,0.48208741,80.519,80.497,0.5004363]
[1771845515487,0.48208741,80.519,80.498,12.92310518]
[1771845516482,0.48208741,80.509,80.484,31.06207444]
[1771845516688,0.48208741,80.499,80.484,31.06207444]
[1771845516888,0.48208741,80.499,80.485,12.4246754]
[1771845517277,3.95370516,80.5,80.485,12.4246754]
[1771845517601,3.95370516,80.51,80.486,0.5004363]
[1771845518492,3.95370516,80.52,80.487,12.42436666]
[1771845518701,3.95370516,80.52,80.488,0.5004363]
[1771845519399,0.48208741,80.519,80.488,0.5004363]
[1771845524477,0.48208741,80.519,80.49,0.5004363]
[1771845525795,0.48208741,80.519,80.492,0.5004363]
[1771845528315,0.48208741,80.519,80.494,0.47229785]
[1771845529204,0.49901472,80.518,80.494,0.47229785]
[1771845530511,0.49901472,80.518,80.496,0.47229785]
[1771845532103,0.49901472,80.509,80.471,0.47229785]
[1771845532305,0.49901472,80.499,80.471,0.47229785]
[1771845532606,3.95370516,80.49,80.471,0.47229785]
[1771845534008,0.49901472,80.49,80.473,0.47229785]
[1771845534215,0.49901472,80.495,80.473,0.47229785]
[1771845534402,4.45271988,80.5,80.473,0.47229785]
[1771845534606,0.49901472,80.499,80.473,0.47229785]
[1771845537413,0.49901472,80.499,80.475,0.47229785]
[1771845538009,0.49901472,80.509,80.475,0.47229785]
[1771845538209,0.49901472,80.514,80.481,0.47229785]
[1771845538911,3.95845449,80.51,80.481,0.47229785]
[1771845539414,0.49901472,80.509,80.483,0.47229785]
[1771845540516,0.49901472,80.509,80.485,0.47229785]
[1771845544331,0.49901472,80.509,80.487,0.47229785]
[1771845546419,0.49901472,80.509,80.488,12.4242123]
[1771845546620,0.49901472,80.509,80.489,0.47229785]
[1771845548125,0.49901472,80.513,80.491,0.47229785]
[1771845548425,4.45746921,80.51,80.491,0.47229785]
[1771845550025,0.49901472,80.509,80.491,0.47229785]
[1771845550222,0.49901472,80.499,80.483,0.47229785]
[1771845551623,0.49901472,80.499,80.484,12.89712762]
[1771845555724,0.49901472,80.499,80.48,0.47229785]
[1771845559116,0.49901472,80.499,80.481,12.42529292]
[1771845559333,0.49901472,80.499,80.482,0.49872224]
[1771845561027,0.49901472,80.499,80.483,12.42498415]
[1771845561327,0.49901472,80.499,80.484,0.49872224]
[1771845562214,0.49901472,80.499,80.485,12.4246754]
[1771845564424,12.41804092,80.528,80.487,0.49872224]
[1771845564728,3.95845449,80.51,80.487,0.49872224]
[1771845564930,3.95845449,80.51,80.482,0.49872224]
[1771845565117,3.95845449,80.5,80.482,0.49872224]
[1771845565315,3.95845449,80.51,80.482,0.49872224]
[1771845566514,6.49452791,80.53,80.484,0.49872224]
[1771845566720,0.15282138,80.529,80.491,0.49872224]
[1771845566921,74.7,80.578,80.483,12.42498415]
[1771845566922,0.15280415,80.547,80.503,0.49872224]
[1771845567128,0.15280415,80.547,80.511,0.49872224]
[1771845567625,4.11125864,80.54,80.511,0.49872224]
[1771845567826,3.95845449,80.53,80.511,0.49872224]
[1771845569329,3.95845449,80.53,80.512,12.91923098]
[1771845570339,0.15275363,80.529,80.509,0.49872224]
[1771845572852,0.15270484,80.559,80.511,0.49872224]
[1771845573034,0.15270484,80.549,80.511,0.49872224]
[1771845575048,0.15267323,80.548,80.513,0.49872224]
[1771845577237,0.15267323,80.548,80.515,0.49872224]
[1771845579663,3.95845449,80.54,80.517,0.49872224]
[1771845579845,3.69108967,80.54,80.518,0.49872224]
[1771845580446,3.84368701,80.54,80.518,0.49872224]
[1771845581861,3.84368701,80.54,80.52,0.49872224]
[1771845582257,0.15256819,80.539,80.52,0.49872224]
[1771845583051,3.69383402,80.574,80.512,31.05127186]
[1771845583052,0.15255387,80.549,80.522,0.49872224]
[1771845585566,12.56735728,80.549,80.524,0.49872224]
[1771845586773,0.1524982,80.548,80.524,0.49872224]
[1771845588066,3.95845449,80.55,80.526,0.49554232]
[1771845588296,12.41141245,80.572,80.541,0.49554232]
[1771845588457,0.15247132,80.571,80.541,0.49554232]
[1771845588656,3.95845449,80.57,80.541,0.49554232]
[1771845589058,4.11091259,80.57,80.541,0.49554232]
[1771845589381,3.95845449,80.56,80.542,0.49554232]
[1771845589574,0.1524581,80.564,80.542,0.49554232]
[1771845589878,0.15244504,80.598,80.551,0.49554232]
[1771845590083,3.95845449,80.59,80.561,0.49554232]
[1771845590382,0.15244504,80.594,80.561,0.49554232]
[1771845590680,3.95845449,80.59,80.561,0.49554232]
[1771845591665,12.40710182,80.599,80.563,0.49554232]
[1771845591870,12.55952119,80.599,80.563,0.49554232]
[1771845592769,3.95845449,80.59,80.563,0.49554232]
[1771845593575,3.95845449,80.59,80.564,12.41249193]
[1771845593779,3.95845449,80.58,80.56,0.49554232]
[1771845594071,3.95845449,80.58,80.496,49.69158918]
[1771845594072,0.15239429,80.579,80.555,0.49554232]
[1771845595081,3.95845449,80.57,80.555,0.49554232]
[1771845595263,3.95104328,80.57,80.555,0.49554232]
[1771845596570,12.41088555,80.575,80.555,0.49554232]
[1771845601483,0.15231092,80.574,80.555,0.49554232]
[1771845601875,12.41088555,80.575,80.555,0.49554232]
[1771845602278,0.15229955,80.569,80.541,12.41603655]
[1771845604294,0.15229955,80.569,80.543,12.41572824]
[1771845604591,0.15229955,80.569,80.544,0.49554232]
[1771845606186,0.15229955,80.569,80.546,0.49554232]
[1771845608303,0.46152279,80.559,80.538,12.41647814]
[1771845610285,0.46152279,80.559,80.541,0.49554232]
[1771845612503,0.46152279,80.568,80.543,0.49554232]
[1771845614291,0.5,80.559,80.543,0.49554232]
[1771845615298,0.5,80.549,80.543,0.49554232]
[1771845615610,0.5,80.559,80.549,0.49554232]
[1771845616204,0.5,80.559,80.541,12.41147684]
[1771845617408,0.5,80.559,80.533,31.04292107]
[1771845618198,0.5,80.559,80.534,0.3628559]
[1771845618610,0.46312092,80.558,80.531,12.41757832]
[1771845618819,0.46312092,80.558,80.531,12.78041586]
[1771845619021,0.46312092,80.558,80.532,0.36283754]
[1771845620516,0.46312092,80.558,80.534,0.36282852]
[1771845622810,0.46312092,80.558,80.535,12.41696156]
[1771845623017,0.46312092,80.558,80.536,0.36280206]
[1771845623396,0.5,80.559,80.536,0.36280206]
[1771845623593,0.5,80.559,80.541,0.36280206]
[1771845623924,0.46312092,80.574,80.541,0.36280206]
[1771845626021,0.46312092,80.572,80.543,0.36277651]
[1771845630430,0.46312092,80.572,80.545,0.36274379]
[1771845631411,0.46312092,80.572,80.552,0.36273584]
[1771845632231,0.46312092,80.572,80.561,0.5]
[1771845633631,0.46312092,80.57,80.561,0.5]
[1771845640334,4.05104328,80.6,80.563,0.36266831]
[1771845640335,0.46312092,80.586,80.563,0.36266831]
[1771845642637,0.1,80.6,80.565,0.36265423]
[1771845642823,0.46312092,80.596,80.571,0.36265423]
[1771845645019,0.46312092,80.595,80.572,0.36263371]
[1771845646030,0.46312092,80.599,80.572,0.36263371]
[1771845646224,0.1,80.6,80.572,0.36263371]
[1771845646437,0.1,80.6,80.571,43.43985036]
[1771845646438,0.46312092,80.633,80.592,0.26262703]
[1771845646637,6.48448931,80.633,80.611,0.26262703]
[1771845646932,0.46312092,80.632,80.612,12.66772139]
[1771845647942,0.48997108,80.637,80.613,0.26260744]
[1771845649146,0.48997108,80.637,80.614,12.40479321]
[1771845649647,0.48997108,80.619,80.586,0.26260106]
[1771845650143,0.48997108,80.628,80.601,0.26259475]
[1771845650445,0.48997108,80.635,80.601,0.26259475]
[1771845651441,0.48997108,80.629,80.601,12.40673365]
[1771845651624,0.48997108,80.629,80.601,12.66932217]
[1771845651825,0.48997108,80.629,80.602,0.26258235]
[1771845652025,0.48997108,80.639,80.602,0.26258235]
[1771845652330,0.48997108,80.655,80.622,0.16258235]
[1771845653433,0.48997108,80.649,80.622,0.16258235]
[1771845657746,0.58997108,80.66,80.631,0.16255258]
[1771845658250,0.48997108,80.659,80.631,0.16255258]
[1771845658445,0.48997108,80.658,80.631,0.16255258]
[1771845661437,0.48997108,80.656,80.626,0.16252997]
[1771845661636,0.48997108,80.649,80.62,0.16252997]
[1771845661951,0.48997108,80.647,80.615,0.16252997]
[1771845662258,0.48997108,80.639,80.612,0.16252448]
[1771845662931,0.48997108,80.639,80.611,12.40525486]
[1771845663132,0.48997108,80.629,80.601,0.16251906]
[1771845664940,0.48997108,80.629,80.601,43.58629792]
[1771845665147,0.48997108,80.629,80.601,12.40679396]
[1771845666339,0.48997108,80.629,80.596,0.16250839]
[1771845668155,0.48997108,80.629,80.601,0.5]
[1771845669139,0.48997108,80.629,80.611,0.5]
[1771845670251,0.48997108,80.629,80.621,0.5]
[1771845670453,0.48997108,80.629,80.621,0.17938074]
[1771845677856,0.48717723,80.639,80.621,0.17938074]
[1771845678058,0.48717723,80.639,80.622,12.4035623]
[1771845678569,0.48717723,80.639,80.621,0.17938074]
[1771845679367,0.48717723,80.639,80.622,0.16243135]
[1771845679864,0.48717723,80.639,80.621,12.58300694]
[1771845680569,0.48717723,80.639,80.621,0.17938074]
[1771845682073,0.46111607,80.637,80.621,0.17938074]
[1771845683181,0.46111607,80.629,80.581,0.34179496]
[1771845683372,0.46111607,80.609,80.581,0.34179496]
[1771845683565,0.46111607,80.619,80.581,0.34179496]
[1771845684073,0.46111607,80.619,80.591,0.3417908]
[1771845684564,0.46111607,80.619,80.593,0.3417908]
[1771845687064,3.90419707,80.62,80.595,0.46768866]
[1771845687773,12.40328734,80.624,80.595,0.46768866]
[1771845687969,11.90328734,80.624,80.596,0.46768866]
[1771845688882,11.40328734,80.624,80.597,0.46768866]
[1771845689177,0.46111607,80.623,80.599,0.46768866]
[1771845689580,0.46111607,80.619,80.599,0.46768866]
[1771845689962,0.46111607,80.619,80.594,0.46768866]
[1771845690163,0.46111607,80.619,80.595,0.46768866]
[1771845692382,0.46111607,80.609,80.59,12.87614249]
[1771845692586,0.46111607,80.609,80.583,31.0235957]
[1771845692587,0.46111607,80.609,80.575,12.41079739]
[1771845692787,12.40417772,80.618,80.576,0.46768866]
[1771845692788,0.46111607,80.599,80.576,0.46768866]
[1771845693861,3.943081,80.61,80.576,0.46768866]
[1771845694065,0.46111607,80.609,80.576,0.46768866]
[1771845695472,0.46111607,80.609,80.577,12.41048934]
[1771845695688,0.46111607,80.609,80.578,0.46768866]
[1771845696974,0.46111607,80.609,80.58,0.46768866]
[1771845699689,0.46111607,80.609,80.582,0.46768866]
[1771845700972,0.25084718,80.609,80.584,0.46768866]
[1771845702485,0.25084718,80.609,80.586,0.46768866]
[1771845705077,0.46111607,80.599,80.58,0.46768866]
[1771845705378,0.46111607,80.599,80.572,0.46768866]
[1771845705788,3.943081,80.6,80.572,0.46768866]
[1771845706379,4.40419707,80.6,80.572,0.46768866]
[1771845706567,0.46111607,80.599,80.572,0.46768866]
[1771845707472,0.46111607,80.599,80.574,0.46768866]
[1771845711400,0.46111607,80.599,80.575,12.88981885]
[1771845711601,0.50323181,80.589,80.551,0.47902146]
[1771845711792,0.50323181,80.589,80.511,49.68242089]
[1771845711793,0.50323181,80.559,80.532,12.41742412]
[1771845711976,0.50323181,80.559,80.52,4.143081]
[1771845711977,3.943081,80.54,80.528,0.47902146]
[1771845712181,0.50323181,80.549,80.528,0.47902146]
[1771845712381,0.50323181,80.549,80.53,0.67902146]
[1771845715499,0.50323181,80.549,80.531,0.47902146]
[1771845717302,0.50323181,80.549,80.53,12.61771152]
[1771845717800,0.50323181,80.549,80.53,0.2]
[1771845718007,31.03015783,80.567,80.52,0.2]
[1771845718008,0.50323181,80.539,80.52,0.2]
[1771845718507,0.50323181,80.529,80.52,0.2]
[1771845720304,12.41804092,80.528,80.503,12.42189732]
[1771845720508,3.9535957,80.51,80.497,0.47902146]
[1771845720691,0.50323181,80.509,80.492,0.47902146]
[1771845721087,0.50323181,80.509,80.49,0.2]
[1771845721604,3.9535957,80.5,80.484,0.47902146]
[1771845721800,49.66543269,80.539,80.484,0.47902146]
[1771845721801,3.9535957,80.51,80.484,0.47902146]
[1771845722193,3.9535957,80.51,80.485,12.4246754]
[1771845722388,0.50323181,80.526,80.491,0.47902146]
[1771845723612,0.50323181,80.526,80.49,3.9535957]
[1771845723613,0.50323181,80.526,80.493,0.47902146]
[1771845723791,0.50323181,80.519,80.493,0.47902146]
[1771845726192,0.50323181,80.519,80.495,0.47902146]
[1771845731113,0.50323181,80.519,80.497,0.47902146]
[1771845733222,0.50323181,80.519,80.471,104.8]
[1771845733223,0.50323181,80.538,80.503,0.47902146]
[1771845736047,0.50323181,80.529,80.505,0.47902146]
[1771845737842,3.9535957,80.53,80.505,0.47902146]
[1771845738141,0.48236107,80.529,80.507,0.49041533]
[1771845738830,0.49685998,80.535,80.507,0.49041533]
[1771845739015,12.41666887,80.537,80.511,0.49591481]
[1771845739436,12.91352885,80.537,80.513,0.49591481]
[1771845740141,12.91301037,80.541,80.513,0.49591481]
[1771845740345,4.45045568,80.54,80.513,0.49591481]
[1771845740640,0.49685998,80.539,80.513,0.49591481]
[1771845743836,0.49685998,80.537,80.513,0.49591481]
[1771845747745,0.49685998,80.529,80.508,0.49591481]
[1771845748551,0.49685998,80.529,80.503,0.49591481]
[1771845751523,0.49685998,80.529,80.505,0.49591481]
[1771845754751,0.49685998,80.528,80.507,0.49591481]
[1771845754940,0.49685998,80.528,80.506,12.42143442]
[1771845755247,0.49685998,80.519,80.503,0.49591481]
[1771845758332,0.49685998,80.518,80.483,0.49591481]
[1771845759338,12.41949626,80.519,80.484,0.49591481]
[1771845759339,0.49685998,80.509,80.484,0.49591481]
[1771845760633,0.49685998,80.507,80.484,0.49591481]
[1771845763547,0.49685998,80.505,80.485,0.49591481]
[1771845765333,0.49685998,80.505,80.47,4.1535957]
[1771845765334,0.49685998,80.505,80.477,0.49591481]
[1771845765729,0.49685998,80.499,80.479,0.49591481]
[1771845769353,0.49685998,80.499,80.474,0.54382407]
[1771845770152,3.9535957,80.5,80.474,0.54382407]
[1771845770153,12.42266888,80.498,80.474,0.54382407]
[1771845770359,0.51680871,80.497,80.474,0.54382407]
[1771845771347,0.51680871,80.495,80.474,0.54382407]
[1771845772959,0.51680871,80.489,80.47,0.2]
[1771845773139,0.51680871,80.479,80.457,12.97282341]
[1771845773341,0.51680871,80.474,80.457,12.97282341]
[1771845773537,0.51680871,80.474,80.451,12.42992629]
[1771845773741,0.51680871,80.459,80.44,0.2]
[1771845774952,0.51680871,80.457,80.44,0.2]
[1771845775354,0.51680871,80.468,80.442,0.54382407]
[1771845776159,0.51680871,80.459,80.44,0.74382407]
[1771845776459,0.51680871,80.462,80.442,0.54382407]
[1771845777244,0.51680871,80.462,80.444,0.54382407]
[1771845778437,0.51680871,80.467,80.444,0.54382407]
[1771845778853,0.51680871,80.487,80.451,0.54382407]
[1771845779158,0.51680871,80.486,80.453,0.54382407]
[1771845780159,0.51680871,80.479,80.453,0.54382407]
[1771845782873,0.51680871,80.479,80.454,12.42946279]
[1771845783073,0.51680871,80.469,80.443,0.54382407]
[1771845784453,0.51680871,80.475,80.443,0.54382407]
[1771845784852,0.51680871,80.475,80.445,0.54382407]
[1771845785254,12.42417892,80.489,80.461,0.54382407]
[1771845785654,0.51680871,80.488,80.461,0.54382407]
[1771845787066,12.42436666,80.487,80.461,0.54382407]
[1771845787368,0.51680871,80.486,80.461,0.54382407]
[1771845789365,3.95912329,80.48,80.459,12.42860289]
[1771845789558,0.51680871,80.479,80.459,12.42860289]
[1771845790558,0.51680871,80.479,80.459,0.54382407]
[1771845790868,0.51680871,80.485,80.459,0.54382407]
[1771845792963,0.51680871,80.483,80.459,0.54382407]
[1771845793658,0.51680871,80.488,80.461,0.54382407]
[1771845793859,12.42341327,80.494,80.461,0.54382407]
[1771845794064,0.51680871,80.493,80.461,0.54382407]
[1771845797373,12.42128013,80.507,80.462,43.49879445]
[1771845797676,0.51680871,80.498,80.463,0.54382407]
[1771845799578,0.52436454,80.496,80.471,0.53803977]
[1771845800259,12.94574299,80.507,80.481,0.53803977]
[1771845800460,12.42137845,80.507,80.481,0.53803977]
[1771845801871,0.52436454,80.507,80.482,0.53803977]
[1771845804684,0.52436454,80.507,80.464,31.06979518]
[1771845804685,0.52436454,80.499,80.47,0.53803977]
[1771845805583,0.52436454,80.499,80.47,4.49716306]
[1771845805761,0.52436454,80.499,80.47,3.95912329]
[1771845805962,0.52436454,80.499,80.471,0.53803977]
[1771845806984,0.52436454,80.499,80.473,0.53803977]
[1771845809182,0.52436454,80.499,80.475,0.53803977]
[1771845810287,0.52436454,80.499,80.476,12.42606491]
[1771845811486,0.52436454,80.499,80.476,0.53803977]
[1771845812082,0.52436454,80.497,80.476,0.53803977]
[1771845813690,12.42266888,80.498,80.474,0.53803977]
[1771845814183,0.52436454,80.497,80.474,0.53803977]
[1771845814768,12.42297753,80.496,80.474,0.53803977]
[1771845816690,0.52436454,80.495,80.474,0.53803977]
[1771845820494,0.52436454,80.495,80.469,0.53803977]
[1771845821595,0.52436454,80.495,80.47,12.42699142]
[1771845821988,0.52436454,80.495,80.47,12.96503119]
[1771845823097,0.52436454,80.495,80.471,0.53803977]
[1771845824101,0.52436454,80.495,80.473,0.53803977]
[1771845824996,0.52436454,80.5,80.473,0.53803977]
[1771845826292,0.52436454,80.5,80.475,0.53803977]
[1771845827504,0.52436454,80.5,80.476,12.42606491]
[1771845830199,0.52436454,80.5,80.476,0.55169604]
[1771845830404,4.51109581,80.51,80.48,3.95912329]
[1771845830603,0.55197252,80.509,80.481,0.55169604]
[1771845833212,0.55197252,80.509,80.483,0.55169604]
[1771845834311,0.55197252,80.507,80.483,0.55169604]
[1771845835618,0.55197252,80.505,80.483,0.55169604]
[1771845836920,12.42089293,80.51,80.486,0.55169604]
[1771845837597,0.55197252,80.51,80.486,0.55169604]
[1771845839425,12.41748441,80.532,80.501,0.55169604]
[1771845839630,0.55197252,80.529,80.503,0.55169604]
[1771845840113,0.55197252,80.529,80.498,12.97432403]
[1771845840507,0.55197252,80.509,80.487,0.55169604]
[1771845841520,0.55197252,80.509,80.489,0.55169604]
[1771845843011,0.55197252,80.509,80.49,12.42390359]
[1771845843216,0.55197252,80.509,80.488,0.55169604]
[1771845843420,0.55197252,80.509,80.489,12.42405794]
[1771845844005,0.55197252,80.509,80.489,12.97575398]
[1771845846523,0.55197252,80.509,80.484,0.55169604]
[1771845846710,0.55197252,80.509,80.485,12.4246754]
[1771845846913,0.55197252,80.509,80.486,0.55169604]
[1771845847625,0.55197252,80.507,80.472,0.55169604]
[1771845848423,0.55197252,80.507,80.481,0.55169604]
[1771845848625,0.55197252,80.507,80.483,0.55169604]
[1771845854133,0.55197252,80.506,80.483,0.55169604]
[1771845856613,0.55197252,80.506,80.485,0.55169604]
[1771845865625,0.50643348,80.504,80.485,0.55169604]
[1771845865828,0.50643348,80.499,80.473,0.51845688]
[1771845866423,0.50643348,80.499,80.46,3.9567067]
[1771845866424,0.50643348,80.489,80.451,0.51845688]
[1771845866623,12.42174301,80.504,80.471,0.51845688]
[1771845866835,0.50643348,80.503,80.471,0.51845688]
[1771845868525,0.50643348,80.503,80.472,0.51845688]
[1771845868526,0.50643348,80.502,80.472,0.51845688]